bitfinex/quotes_ETHUSD_20240618
["timestamp","ask_amount","ask_price","bid_price","bid_amount"]
[1718674906240,2.491,3433.4,3430.4,2.91503]
[1718674906438,3.495,3431.4,3429.7,0.03296209]
[1718674906738,2.91,3431.5,3429.6,0.0898877]
[1718674906943,3.0,3430.3,3429.6,0.0898877]
[1718674907453,3.495,3430.0,3429.6,0.0898877]
[1718674907655,6.405,3430.0,3429.6,0.0898877]
[1718674907807,3.0,3429.7,3429.6,0.0898877]
[1718674908002,3.0,3429.7,3425.2,2.91949]
[1718674908003,0.2903,3429.6,3427.1,2.91788]
[1718674908214,3.495,3427.9,3427.0,8.51604802]
[1718674908504,3.0,3427.1,3427.0,8.51604802]
[1718674908828,3.0,3427.1,3427.0,8.54295951]
[1718674909210,4.741,3427.1,3427.0,8.54295951]
[1718674909555,7.741,3427.1,3427.0,8.51604802]
[1718674909730,3.0,3427.1,3427.0,8.51604802]
[1718674909910,6.0,3427.1,3427.0,8.51604802]
[1718674910112,0.1231,3427.1,3427.0,8.51604802]
[1718674910412,5.6852,3430.7,3427.0,8.51604802]
[1718674910413,0.75,3429.0,3427.0,8.51604802]
[1718674910612,5.6852,3430.7,3427.1,2.91788]
[1718674910613,3.0,3428.4,3427.1,2.91788]
[1718674910816,3.0,3428.4,3427.0,8.51604802]
[1718674910817,3.0,3428.4,3428.3,0.75]
[1718674911018,3.0,3428.8,3427.7,0.75]
[1718674911261,3.0,3428.8,3427.0,8.51604802]
[1718674911524,3.0,3428.0,3427.1,0.9266048]
[1718674911738,3.0,3428.0,3427.0,8.51604802]
[1718674912073,3.495,3427.5,3427.1,3.0]
[1718674912241,3.495,3427.5,3426.7,0.1255215]
[1718674912242,3.0,3426.8,3426.7,0.1255215]
[1718674912444,4.44398311,3426.8,3426.7,0.1255215]
[1718674912766,3.0,3426.0,3425.9,0.24932466]
[1718674913309,3.0,3426.0,3424.0,0.75]
[1718674913310,3.0,3425.5,3422.2,9.51985965]
[1718674913572,9.8819,3425.5,3423.6,2.92089]
[1718674913754,4.741,3425.5,3423.4,2.92105]
[1718674913928,1.18706423,3425.5,3425.4,9.46071709]
[1718674914131,7.2694,3427.6,3425.4,9.46071709]
[1718674914132,4.91627293,3427.4,3425.4,8.6006519]
[1718674914427,3.0,3427.4,3425.4,8.6006519]
[1718674914675,3.0,3425.8,3425.4,8.6006519]
[1718674914830,3.0,3427.1,3426.0,9.80655]
[1718674915051,3.0,3427.1,3426.4,2.91851]
[1718674915265,3.0,3427.1,3425.4,8.6006519]
[1718674915463,3.0,3427.1,3426.3,2.91856]
[1718674915667,3.0,3427.1,3426.1,2.91869]
[1718674915960,3.0,3427.1,3426.7,2.91819]
[1718674916279,3.0,3427.1,3426.6,2.91832]
[1718674916460,3.0,3427.1,3425.9,2.9189]
[1718674916662,3.0,3427.1,3426.2,2.91862]
[1718674916663,2.91,3426.7,3426.2,2.91862]
[1718674916861,2.91,3426.7,3425.4,8.6006519]
[1718674916862,3.0,3426.6,3425.4,8.6006519]
[1718674917061,3.0,3425.9,3425.4,8.6006519]
[1718674917275,6.8231,3426.3,3425.4,8.6006519]
[1718674917276,5.91928,3425.5,3425.4,8.6006519]
[1718674917630,19.55184,3425.5,3425.4,8.6006519]
[1718674917833,22.47112,3425.5,3425.4,8.6006519]
[1718674918150,13.50217,3424.2,3424.1,0.01339054]
[1718674918406,16.50217,3424.2,3424.1,0.01339054]
[1718674918567,16.50217,3424.2,3422.6,0.56189553]
[1718674918568,1.741,3422.9,3422.6,0.56189553]
[1718674918775,13.55901,3422.7,3422.6,0.56189553]
[1718674919078,7.58434,3422.7,3422.6,0.56189553]
[1718674919290,9.34349,3422.7,3422.6,0.56189553]
[1718674919488,5.84334,3422.7,3422.6,0.56189553]
[1718674919671,5.84334,3422.7,3422.2,8.76985965]
[1718674919672,6.053,3422.3,3422.2,8.76985965]
[1718674920073,16.50703,3422.3,3422.2,8.76985965]
[1718674920275,13.50703,3422.3,3422.2,8.76985965]
[1718674920691,4.99026993,3424.2,3422.2,8.76985965]
[1718674920692,3.244,3424.4,3422.2,2.27252678]
[1718674920973,0.2903,3424.5,3422.2,2.27252678]
[1718674921274,1.44398311,3425.0,3422.2,2.27252678]
[1718674921678,3.0,3423.8,3422.2,2.27252678]
[1718674921884,4.93898311,3425.0,3422.3,2.92197]
[1718674921885,3.0,3423.5,3422.3,2.92197]
[1718674922083,3.0,3423.5,3422.2,2.27252678]
[1718674922266,3.495,3422.9,3422.2,2.27252678]
[1718674922467,1.44398311,3422.8,3422.6,2.74221]
[1718674922668,1.44398311,3422.8,3420.7,0.2001698]
[1718674922669,1.44398311,3422.8,3421.6,2.9226]
[1718674922870,0.028,3422.0,3421.9,14.61175]
[1718674923100,0.028,3422.0,3420.7,0.2001698]
[1718674923302,0.03042,3421.6,3420.7,0.2001698]
[1718674923510,0.03042,3421.6,3420.7,3.1235098]
[1718674923875,2.92311,3421.1,3420.6,6.74153802]
[1718674924070,4.44398311,3421.0,3420.6,6.74153802]
[1718674924291,2.92337,3420.7,3420.6,6.74153802]
[1718674924493,2.92337,3420.7,3420.6,6.70573802]
[1718674924494,9.52011,3420.7,3420.6,6.70573802]
[1718674924720,15.44348,3420.7,3420.6,8.02e-06]
[1718674924902,15.44348,3420.7,3419.0,8.9390674]
[1718674924903,6.16874,3419.1,3419.0,8.9390674]
[1718674925107,8.7768,3418.1,3418.0,1e-06]
[1718674925274,1.44398311,3418.4,3418.0,1e-06]
[1718674925471,9.52833,3417.5,3417.4,8.84417127]
[1718674925729,8.12009311,3417.5,3416.0,0.2]
[1718674926017,0.75,3417.0,3416.0,7.91487967]
[1718674926219,2.92688,3416.6,3416.5,10.2665]
[1718674926374,2.92594,3417.8,3416.5,10.2665]
[1718674926574,3.0,3418.2,3416.5,6.7715]
[1718674926843,3.0,3418.2,3416.6,2.92688]
[1718674926975,3.244,3422.2,3419.0,2.92479]
[1718674927197,4.68798311,3422.2,3417.5,7.274]
[1718674927497,4.68798311,3422.2,3416.7,0.969838]
[1718674927498,3.244,3421.4,3418.4,2.92531]
[1718674927693,3.244,3420.9,3417.6,2.926]
[1718674927900,3.244,3420.9,3416.7,0.969838]
[1718674927901,3.495,3420.1,3416.7,1.719838]
[1718674928207,1.76838311,3420.8,3416.7,1.719838]
[1718674928208,1.44398311,3420.7,3418.2,2.92547]
[1718674928397,1.44398311,3420.7,3417.4,2.92611]
[1718674928398,3.244,3420.6,3417.4,2.92611]
[1718674928598,3.244,3419.4,3416.4,2.92697]
[1718674928941,3.244,3419.4,3416.1,2.92728]
[1718674928942,1.741,3418.7,3416.1,2.92728]
[1718674929166,3.244,3418.1,3415.9,0.1255215]
[1718674929314,0.75,3417.7,3415.9,0.1255215]
[1718674929494,1.44398311,3417.6,3415.9,0.1255215]
[1718674929696,1.741,3417.5,3415.9,0.1255215]
[1718674929903,1.741,3417.5,3415.6,0.20761494]
[1718674929904,1.741,3416.4,3415.6,0.20761494]
[1718674930097,2.491,3415.7,3415.6,0.20761494]
[1718674930370,0.75,3414.6,3414.5,0.25]
[1718674930648,0.75,3414.6,3414.2,9.19287903]
[1718674930649,1.44398311,3414.6,3414.2,6.64454858]
[1718674930893,3.23645657,3414.3,3413.9,0.038036]
[1718674931008,3.0,3414.4,3412.6,9.29140219]
[1718674931200,0.75,3413.6,3412.6,8.18140219]
[1718674931406,3.0,3413.7,3412.7,2.93016]
[1718674931702,0.75,3414.5,3413.3,3.713]
[1718674931905,1.45624617,3416.4,3412.6,8.18140219]
[1718674932172,6.1185,3415.7,3412.6,8.18140219]
[1718674932436,6.1185,3414.9,3412.6,8.18140219]
[1718674932664,1.44398311,3415.6,3413.7,2.92933]
[1718674932798,1.44398311,3415.6,3412.6,15.55590219]
[1718674933000,3.0,3416.4,3414.7,2.9285]
[1718674933247,1.741,3415.8,3415.6,0.142]
[1718674934050,6.1185,3417.2,3415.6,3.06973]
[1718674934257,6.1135,3417.2,3415.6,3.06973]
[1718674934402,0.75,3417.4,3415.7,0.306973]
[1718674934602,1.44398311,3417.7,3417.1,2.92641]
[1718674934834,1.44398311,3417.7,3415.6,0.142]
[1718674934835,0.75,3417.9,3415.6,0.142]
[1718674935156,1.44398311,3418.2,3415.6,0.142]
[1718674935157,1.741,3417.5,3415.6,0.142]
[1718674935301,5.94,3416.8,3414.8,2.92836]
[1718674935504,1.44398311,3416.7,3415.8,2.92749]
[1718674935761,1.44398311,3416.7,3414.2,0.75]
[1718674935902,1.44398311,3416.7,3413.2,0.75]
[1718674935903,2.92771,3415.7,3413.2,0.75]
[1718674936101,3.68023,3412.7,3412.6,1.50088219]
[1718674936707,6.68023,3412.7,3412.6,1.50088219]
[1718674936904,5.93023,3412.7,3412.6,0.24487587]
[1718674937130,3.75,3413.2,3412.6,0.24487587]
[1718674937352,0.75,3412.7,3412.6,7.51977587]
[1718674937504,0.75,3414.4,3412.6,0.99685346]
[1718674937704,3.0,3415.6,3412.8,7.2749]
[1718674937906,3.0,3415.6,3415.4,7.2749]
[1718674938144,30.0,3420.2,3415.4,7.2749]
[1718674938145,0.75,3417.3,3415.4,7.2749]
[1718674938343,0.75,3417.3,3414.8,2.92839]
[1718674938344,0.75,3417.3,3416.5,2.92688]
[1718674938505,0.75,3421.1,3418.4,2.92526]
[1718674938707,3.0,3420.6,3420.5,2.92354]
[1718674939004,3.0,3421.6,3420.7,2.92331]
[1718674939200,0.33074732,3422.6,3421.2,2.92294]
[1718674939404,0.75,3422.9,3421.7,2.92247]
[1718674939640,4.742,3425.1,3422.0,2.92224]
[1718674939641,0.75,3424.1,3422.0,2.92224]
[1718674939847,1.43737394,3428.1,3421.7,2.92247]
[1718674939848,3.0,3424.3,3424.1,2.9204]
[1718674940026,3.0,3424.3,3422.9,2.92147]
[1718674940027,0.2764033,3424.0,3422.7,2.92158]
[1718674940233,0.2764033,3424.0,3423.7,5.84162]
[1718674940434,3.0,3423.9,3423.3,2.92112]
[1718674940744,3.0,3423.9,3419.9,1.40573952]
[1718674940745,3.0,3423.5,3423.1,2.92129]
[1718674940991,3.0,3423.5,3422.3,2.92199]
[1718674940992,4.742,3423.8,3422.3,2.922]
[1718674941119,1.44398311,3423.9,3420.7,2.92333]
[1718674941315,1.44398311,3423.9,3421.6,2.92256]
[1718674941316,0.75,3423.6,3421.6,2.92256]
[1718674941533,0.75,3423.6,3421.8,2.92243]
[1718674941704,0.75,3423.6,3421.7,0.55]
[1718674941705,3.0,3423.3,3421.9,0.55]
[1718674941909,3.0,3423.3,3422.3,2.92197]
[1718674942265,5.01834326,3425.4,3421.9,7.1687]
[1718674942266,3.0,3424.6,3421.9,7.1687]
[1718674942537,3.0,3424.6,3423.6,2.92088]
[1718674942724,3.0,3424.5,3423.8,2.92066]
[1718674942933,3.27634326,3425.4,3424.3,2.92029]
[1718674943115,0.75,3424.9,3423.0,2.9214]
[1718674943438,3.7623747,3427.1,3423.3,2.92107]
[1718674943439,3.0,3426.2,3423.3,2.92107]
[1718674943738,3.0,3426.2,3423.9,7.3397]
[1718674943950,1.44398311,3426.1,3423.1,0.84214]
[1718674944104,0.75,3426.9,3423.1,0.84214]
[1718674944105,3.0,3426.0,3425.9,2.91894]
[1718674944307,3.0,3426.0,3425.9,0.55]
[1718674944536,3.0,3426.0,3423.9,2.92061]
[1718674944843,2.19398311,3426.4,3424.0,2.92047]
[1718674945015,3.0,3426.8,3425.3,2.91936]
[1718674945016,0.75,3426.7,3425.3,2.91936]
[1718674945217,3.0,3426.8,3423.1,0.29214]
[1718674945429,3.0,3426.2,3424.9,5.83944]
[1718674945609,1.44398311,3427.3,3424.5,2.92006]
[1718674945808,1.44398311,3427.3,3423.7,3.0]
[1718674945809,1.44398311,3427.3,3424.6,0.842006]
[1718674946058,1.44398311,3427.3,3425.9,2.91887]
[1718674946266,3.0,3426.9,3426.0,0.55]
[1718674946558,3.0,3427.3,3426.7,2.91818]
[1718674946760,3.0,3426.8,3426.0,0.55]
[1718674946961,1.44398311,3426.7,3425.8,2.91901]
[1718674947265,1.44398311,3426.7,3424.0,2.92049]
[1718674947266,3.0,3426.3,3425.1,2.91953]
[1718674947425,3.0,3426.3,3425.3,2.91937]
[1718674947630,3.0,3426.3,3425.5,2.91925]
[1718674947851,0.03348124,3425.5,3424.8,2.9198]
[1718674948037,0.03348124,3425.5,3423.2,2.92123]
[1718674948242,0.03348124,3425.5,3423.6,2.92084]
[1718674948578,0.03348124,3425.5,3424.5,2.92005]
[1718674948789,0.03348124,3425.5,3425.4,8.75808]
[1718674949340,0.03348124,3425.5,3425.4,6.38872]
[1718674949544,0.03348124,3425.5,3424.5,2.92005]
[1718674949745,0.03348124,3425.5,3425.4,2.91936]
[1718674949989,0.9093338,3427.6,3424.5,0.292005]
[1718674949990,0.1593338,3427.6,3424.8,2.91987]
[1718674950194,0.1593338,3427.6,3424.5,0.292005]
[1718674950195,0.1593338,3427.6,3425.4,2.91934]
[1718674950685,5.91767,3427.4,3426.3,2.91853]
[1718674950983,5.91767,3427.4,3425.7,2.91902]
[1718674950984,2.91818,3426.8,3425.7,2.91902]
[1718674951190,2.9182,3426.8,3425.8,2.91895]
[1718674951489,2.91886,3426.0,3424.7,2.91993]
[1718674951801,5.91884,3426.1,3424.8,2.91981]
[1718674951944,4.36242311,3426.5,3423.8,6.9707]
[1718674951945,2.91952,3425.3,3424.1,2.92039]
[1718674952151,3.0,3425.7,3422.4,0.75]
[1718674952152,2.91921,3425.6,3424.6,2.92003]
[1718674952387,2.91945,3425.4,3424.4,2.92015]
[1718674952584,7.742,3425.3,3423.9,2.92059]
[1718674952751,3.0,3424.5,3420.9,6.9707]
[1718674952945,3.0,3424.1,3421.3,2.9228]
[1718674953258,3.0,3424.1,3420.1,0.75]
[1718674953259,3.0,3423.3,3422.1,2.92217]
[1718674953480,2.9216,3422.8,3421.5,2.92266]
[1718674953790,2.92216,3422.2,3421.1,2.88581]
[1718674953944,5.92185,3422.5,3419.8,2.92409]
[1718674953945,2.92295,3421.2,3419.8,2.92409]
[1718674954143,2.92228,3422.0,3420.7,2.9233]
[1718674954556,2.92263,3421.6,3419.5,2.92437]
[1718674954769,2.92313,3421.0,3419.5,2.92437]
[1718674954979,3.0,3420.9,3417.8,2.92583]
[1718674955190,3.0,3420.9,3417.3,2.92628]
[1718674955191,2.92378,3420.3,3417.3,2.92628]
[1718674955491,4.74419,3418.9,3416.5,0.75]
[1718674955657,2.92,3418.0,3416.9,2.88937]
[1718674955848,1.8192,3417.5,3413.9,2.92912]
[1718674956048,2.92585,3417.8,3414.0,0.292912]
[1718674956267,4.44398311,3417.9,3413.1,2.92985]
[1718674956268,2.92788,3415.5,3414.1,7.4496]
[1718674956484,3.0,3417.3,3415.6,2.92767]
[1718674956688,3.0,3417.3,3414.1,11.1626]
[1718674956990,3.0,3417.9,3416.1,6.8238]
[1718674957193,1.8192,3420.2,3416.1,6.8238]
[1718674957194,3.0,3419.5,3416.1,6.8238]
[1718674957394,0.75,3420.6,3417.1,2.92644]
[1718674957552,2.92399,3420.0,3417.2,6.7916]
[1718674957753,3.713,3419.8,3419.1,2.92471]
[1718674957951,1.44398311,3419.9,3417.0,0.75]
[1718674957952,2.92611,3417.5,3417.0,0.75]
[1718674958183,2.92601,3417.7,3416.0,7.3693]
[1718674958405,3.0,3419.5,3417.1,2.92641]
[1718674958550,2.924,3420.0,3418.6,2.92513]
[1718674958747,2.92355,3420.5,3419.1,2.9247]
[1718674958989,2.92327,3420.9,3419.1,2.92471]
[1718674959161,2.92287,3421.3,3419.6,2.92426]
[1718674959363,0.75,3422.9,3419.5,7.3693]
[1718674959581,3.0,3423.2,3419.9,2.92402]
[1718674959582,1.44398311,3422.8,3419.9,2.92402]
[1718674959749,3.713,3423.2,3420.0,0.55]
[1718674959953,2.92254,3421.7,3420.2,2.92379]
[1718674960177,2.92233,3422.0,3420.3,0.55]
[1718674960454,2.92209,3422.3,3420.3,0.55]
[1718674960672,1.44398311,3422.5,3420.3,3.47369]
[1718674960875,2.92338,3420.7,3419.2,2.9246]
[1718674961075,3.0,3421.5,3417.1,2.92644]
[1718674961276,0.28802634,3422.2,3417.1,2.92644]
[1718674961277,2.92391,3420.1,3418.8,2.92499]
[1718674961587,2.9246,3419.3,3418.0,2.92561]
[1718674961804,2.9244,3419.6,3418.0,1.25036794]
[1718674961953,2.9246,3419.3,3418.2,2.92546]
[1718674962154,2.9246,3419.3,3417.3,2.92622]
[1718674962155,2.92482,3419.1,3417.5,2.92609]
[1718674962392,2.92548,3418.3,3417.1,2.92637]
[1718674962561,2.92523,3418.6,3417.3,2.92628]
[1718674962769,3.0,3419.6,3417.6,2.92602]
[1718674962770,2.9246,3419.3,3417.6,2.92602]
[1718674962990,1.44398311,3419.9,3416.8,0.75]
[1718674963314,2.92669,3416.9,3415.6,2.92769]
[1718674963457,2.9253,3418.5,3416.2,2.92715]
[1718674963672,3.0,3418.9,3416.3,2.92712]
[1718674963868,2.92635,3417.3,3414.8,2.92835]
[1718674964069,2.92555,3418.2,3414.3,6.8957]
[1718674964284,5.5322,3417.7,3414.3,6.8957]
[1718674964608,2.92708,3416.4,3415.3,2.92797]
[1718674964826,2.491,3417.5,3414.3,6.8957]
[1718674964970,3.0,3418.2,3414.3,6.8957]
[1718674965174,2.92651,3417.1,3415.3,2.92793]
[1718674965399,2.92662,3417.0,3415.8,2.9275]
[1718674965713,2.92638,3417.2,3416.2,2.92716]
[1718674966019,2.92517,3418.6,3416.3,6.8758]
[1718674966242,2.92424,3419.7,3416.4,1.43758]
[1718674966510,3.0,3419.8,3416.4,0.68758]
[1718674966721,0.75,3419.2,3415.1,6.8758]
[1718674966889,2.92653,3417.1,3416.2,2.92721]
[1718674967217,2.92555,3418.2,3415.8,2.92756]
[1718674967371,2.92555,3418.2,3415.1,6.8758]
[1718674967372,2.92752,3415.9,3415.1,6.8758]
[1718674967572,3.0,3418.2,3415.1,6.8758]
[1718674967791,2.92631,3417.3,3416.1,0.005]
[1718674968118,3.0,3417.0,3412.7,6.8758]
[1718674968281,2.491,3417.1,3412.8,1.08029035]
[1718674968282,2.92664,3416.9,3412.8,1.08029035]
[1718674968485,2.92804,3415.3,3413.1,2.92986]
[1718674968719,2.92872,3414.5,3413.0,2.9299]
[1718674968918,2.92819,3415.1,3412.8,1.08029035]
[1718674969253,3.0,3416.8,3412.8,1.08029035]
[1718674969254,3.0,3416.8,3413.4,2.92961]
[1718674969408,5.5322,3418.2,3412.8,4.79329035]
[1718674969409,0.75,3418.9,3414.7,6.8755]
[1718674969614,2.92724,3416.2,3414.7,6.8755]
[1718674969809,3.0,3419.3,3415.2,6.8755]
[1718674970035,0.75,3419.7,3413.9,2.92918]
[1718674970036,2.92524,3418.6,3416.7,6.8755]
[1718674970222,3.0,3420.3,3416.7,6.8755]
[1718674970543,3.713,3420.9,3416.7,6.8755]
[1718674970544,2.9242,3419.8,3418.4,2.92529]
[1718674970718,1.44398311,3420.9,3418.0,2.92566]
[1718674970719,2.92426,3419.7,3418.6,2.92513]
[1718674971044,2.92426,3419.7,3418.7,0.55]
[1718674971249,2.92456,3419.4,3418.7,0.55]
[1718674971451,2.92456,3419.4,3417.3,2.92623]
[1718674971452,5.90698311,3420.9,3416.9,2.92657]
[1718674971619,5.90698311,3420.9,3416.8,0.68755]
[1718674971620,3.75,3420.4,3417.0,1.598962]
[1718674971809,2.92486,3419.0,3417.7,2.92587]
[1718674972007,2.92466,3419.2,3417.9,2.92573]
[1718674972243,2.92379,3420.3,3417.2,0.2903]
[1718674972439,3.20971263,3420.8,3417.0,1.598962]
[1718674972440,2.92484,3419.0,3418.1,2.92553]
[1718674972658,2.92401,3420.0,3417.0,1.598962]
[1718674972824,2.92506,3418.8,3417.6,2.926]
[1718674973011,2.92506,3418.8,3415.9,3.0]
[1718674973012,2.92572,3418.0,3415.9,3.0]
[1718674973212,2.9259,3417.8,3416.3,2.92709]
[1718674973511,2.92543,3418.3,3417.2,2.92634]
[1718674973844,2.92438,3419.6,3417.3,2.92625]
[1718674973845,2.92516,3418.7,3417.3,2.92625]
[1718674974065,2.92378,3420.3,3417.8,2.9258]
[1718674974066,2.92503,3418.8,3417.8,2.9258]
[1718674974361,2.92417,3419.8,3416.8,0.2903]
[1718674974509,2.92435,3419.6,3417.5,2.92605]
[1718674974710,3.0,3420.9,3416.7,6.8755]
[1718674974711,1.44398311,3420.2,3416.7,6.8755]
[1718674974922,2.9246,3419.3,3417.7,2.92588]
[1718674975143,2.92342,3420.7,3416.7,6.8755]
[1718674975307,2.9244,3419.5,3416.9,0.2903]
[1718674975510,5.84956,3419.1,3417.3,2.92623]
[1718674975739,2.9253,3418.5,3417.4,2.92612]
[1718674975944,2.9236,3420.5,3416.9,2.92659]
[1718674975945,2.92569,3418.0,3417.2,2.92631]
[1718674976187,2.92573,3418.0,3417.2,3.511603]
[1718674976337,2.92523,3418.6,3417.8,2.92579]
[1718674976782,2.92487,3419.0,3416.9,2.92658]
[1718674976949,2.92573,3418.0,3415.7,7.0226]
[1718674977154,2.92567,3418.1,3414.5,2.92866]
[1718674977155,2.92625,3417.4,3414.5,2.92866]
[1718674977340,2.92843,3414.8,3414.4,7.0226]
[1718674977645,2.92864,3414.6,3414.4,7.0226]
[1718674977845,2.92751,3415.9,3414.4,7.0226]
[1718674978049,2.92868,3414.5,3414.4,7.0226]
[1718674978241,2.92714,3416.3,3414.4,7.0226]
[1718674978441,2.92864,3414.6,3414.4,7.0226]
[1718674978668,3.0,3416.4,3414.4,7.0226]
[1718674978669,2.92846,3414.8,3414.4,7.0226]
[1718674978838,4.0403,3417.7,3414.4,7.0226]
[1718674979041,1.0,3417.8,3414.5,2.92867]
[1718674979269,1.0,3417.8,3414.4,7.0226]
[1718674979270,2.92746,3416.0,3414.8,2.9284]
[1718674979477,2.92752,3415.9,3415.0,2.92821]
[1718674979683,2.92762,3415.8,3415.1,0.292821]
[1718674979847,2.92744,3416.0,3414.8,2.9284]
[1718674980174,3.0,3417.6,3414.4,10.0756]
[1718674980175,2.92797,3415.4,3414.4,10.0756]
[1718674980390,2.92838,3414.9,3413.8,2.92924]
[1718674980682,3.0,3417.6,3412.6,0.24487587]
[1718674980683,2.93015,3412.8,3412.6,0.24487587]
[1718674980889,2.93015,3412.8,3410.8,1.25]
[1718674980890,8.0176,3414.0,3412.0,3.67e-06]
[1718674981045,5.86148,3412.1,3412.0,3.67e-06]
[1718674981246,5.86148,3412.1,3410.8,0.5]
[1718674981247,5.8632,3411.1,3410.8,0.5]
[1718674981555,2.9316,3411.1,3410.4,7.03e-06]
[1718674981755,3.0,3411.6,3410.0,3.66e-06]
[1718674982072,3.0,3412.4,3410.0,3.66e-06]
[1718674982249,0.50727577,3413.5,3410.2,6.7825]
[1718674982449,10.2676,3414.9,3410.3,0.67825037]
[1718674982653,0.28747497,3413.5,3410.3,0.67825037]
[1718674982862,0.5070649,3415.2,3411.2,6.7825]
[1718674983064,1.44398311,3415.4,3411.5,2.93121]
[1718674983266,0.287814,3414.7,3412.4,2.93041]
[1718674983491,3.0,3415.3,3412.4,0.293041]
[1718674983655,0.75,3416.3,3412.9,2.92998]
[1718674983854,0.28780289,3415.1,3413.0,3.0]
[1718674984057,3.2903,3417.4,3412.9,0.75]
[1718674984058,3.0,3417.4,3414.5,6.7825]
[1718674984243,1.0,3417.8,3414.5,6.7825]
[1718674984244,4.0,3417.8,3414.5,6.7825]
[1718674984446,4.0,3417.8,3414.6,0.55]
[1718674984447,0.2876974,3416.9,3414.6,0.55]
[1718674984676,3.0,3417.3,3414.6,3.55]
[1718674984876,0.2876313,3416.9,3415.8,2.92749]
[1718674985120,0.2876313,3416.9,3415.9,0.55]
[1718674985404,1.0,3417.8,3414.6,0.55]
[1718674985548,0.28735082,3417.7,3415.7,2.92758]
[1718674985750,0.28735082,3417.7,3415.8,0.55]
[1718674986144,0.28735082,3417.7,3416.3,2.92708]
[1718674986352,1.0,3417.8,3414.7,0.801075]
[1718674986551,1.0,3417.8,3415.6,2.92771]
[1718674986753,3.0,3417.4,3415.2,2.92804]
[1718674986951,0.28779529,3417.6,3415.7,2.92764]
[1718674987189,3.0,3417.5,3414.9,2.92829]
[1718674987422,3.0,3417.5,3413.7,2.92933]
[1718674987423,3.0,3416.7,3414.1,2.92899]
[1718674987563,3.0,3416.7,3413.6,2.92941]
[1718674987749,3.0,3416.7,3413.7,0.292941]
[1718674987955,3.0,3416.3,3413.3,6.8677]
[1718674988178,3.0,3415.7,3413.3,6.8677]
[1718674988379,3.0,3415.5,3413.3,2.92966]
[1718674988591,3.0,3415.5,3412.4,0.293041]
[1718674988920,3.0,3415.5,3411.4,3.053]
[1718674988921,3.75,3415.1,3411.9,2.93085]
[1718674989076,3.0,3414.7,3412.0,0.09102432]
[1718674989401,3.0,3415.0,3412.7,2.9302]
[1718674989715,9.9704,3415.4,3412.0,0.09102432]
[1718674989716,0.75,3414.5,3412.0,0.09102432]
[1718674989916,3.0,3414.3,3412.0,0.09102432]
[1718674990194,3.0,3413.8,3412.0,0.09102432]
[1718674990353,6.7824,3413.6,3412.0,0.09102432]
[1718674990553,3.0,3413.0,3412.0,0.09102432]
[1718674990759,3.0,3413.0,3410.0,2.93248366]
[1718674990760,1.741,3412.8,3410.0,3.66e-06]
[1718674991001,1.741,3412.8,3412.0,0.00410528]
[1718674991002,4.741,3412.5,3412.0,0.00410528]
[1718674991155,1.741,3412.3,3412.0,0.00410528]
[1718674991364,3.0,3412.9,3412.0,0.00073252]
[1718674991592,3.75,3414.3,3412.0,0.00073252]
[1718674991889,1.44398311,3414.5,3412.0,2.93149252]
[1718674992089,7.9338,3414.7,3412.7,2.93018]
[1718674992274,7.9338,3414.7,3412.0,0.00073252]
[1718674992275,10.1838,3414.7,3412.0,0.00073252]
[1718674992474,12.4319684,3414.7,3412.0,0.00073252]
[1718674992798,0.75,3413.9,3412.0,0.00073252]
[1718674992996,7.1838,3413.7,3412.0,0.00073252]
[1718674993292,7.1838,3413.7,3410.0,3.66e-06]
[1718674993293,1.5,3412.6,3410.0,3.66e-06]
[1718674993500,0.75,3411.8,3410.0,3.66e-06]
[1718674993694,3.18498311,3411.7,3410.0,3.66e-06]
[1718674993870,3.0,3411.3,3410.0,3.66e-06]
[1718674994082,0.75,3410.8,3410.0,3.66e-06]
[1718674994266,8.62698311,3410.7,3408.4,0.25]
[1718674994486,3.75,3410.6,3408.4,0.25]
[1718674994795,3.0,3411.3,3408.4,0.25]
[1718674994796,7.183,3410.1,3408.4,0.25]
[1718674995000,7.183,3411.1,3408.6,2.93372]
[1718674995329,7.183,3411.1,3408.4,0.25]
[1718674995330,0.75,3410.4,3408.4,3.18391]
[1718674995629,1.44398311,3410.5,3408.4,0.25]
[1718674995758,0.75,3409.4,3408.4,0.25]
[1718674996084,0.75,3408.7,3408.4,0.25]
[1718674996286,1.44398311,3408.6,3408.4,0.25]
[1718674996604,1.44398311,3408.6,3405.6,0.1191393]
[1718674996605,0.75,3408.1,3405.6,0.1191393]
[1718674996833,0.75,3407.7,3405.6,0.1191393]
[1718674997137,1.44398311,3407.6,3405.6,0.1191393]
[1718674997259,0.75,3407.1,3405.6,0.1191393]
[1718674997458,0.75,3405.9,3405.6,0.0780393]
[1718674997756,0.75,3405.9,3405.5,0.09052382]
[1718674997757,0.75,3406.1,3405.5,0.07682382]
[1718674998110,0.75,3405.9,3405.5,0.07682382]
[1718674998272,0.45281133,3406.1,3405.5,0.07682382]
[1718674998454,0.43094874,3406.1,3405.5,0.0092352]
[1718674998658,2.19398311,3406.4,3405.5,0.0092352]
[1718674998857,3.0,3406.3,3405.2,0.10920522]
[1718674999100,4.44398311,3406.4,3405.2,0.10920522]
[1718674999101,0.75,3405.5,3405.2,0.10920522]
[1718674999303,0.75,3404.6,3402.0,0.00311264]